bitfinex/quotes_ETHUSD_20251028
["timestamp","ask_amount","ask_price","bid_price","bid_amount"]
[1761661077773,0.406504,4163.8,4162.2,2.40254338]
[1761661077949,2.40221366,4162.9,4162.2,2.40252136]
[1761661078275,2.40206255,4163.1,4162.4,2.40240912]
[1761661078682,2.40212502,4163.0,4162.3,2.40250911]
[1761661078977,2.40206293,4163.1,4162.4,2.40244701]
[1761661079365,0.4568,4163.5,4162.2,2.40257556]
[1761661079580,0.4568,4163.5,4162.3,1.5552]
[1761661079581,2.40201378,4163.2,4162.3,1.5552]
[1761661079784,2.40201378,4163.2,4162.5,2.40235646]
[1761661080505,2.40194739,4163.3,4162.6,2.40233196]
[1761661080670,0.4578,4163.8,4162.7,3.63458831]
[1761661080876,2.40198143,4163.3,4162.7,3.63458831]
[1761661081213,2.40201113,4163.2,4162.7,3.63458831]
[1761661081508,2.40182538,4163.5,4162.8,3.58654835]
[1761661081713,2.40227222,4162.8,4162.3,3.58654835]
[1761661081875,2.80744476,4163.3,4162.2,1.5552]
[1761661082074,2.40230055,4162.7,4162.2,1.5552]
[1761661083011,2.40269101,4162.0,4161.3,0.90187384]
[1761661083323,0.405504,4162.5,4161.8,0.12]
[1761661083324,2.40268426,4162.1,4161.8,0.12]
[1761661083500,2.40269101,4162.0,4161.8,0.12]
[1761661083685,0.525504,4162.5,4161.8,0.12]
[1761661083686,0.12,4162.5,4161.8,0.12]
[1761661084305,2.40256182,4162.3,4161.8,0.12]
[1761661084687,0.12,4162.5,4161.8,0.12]
[1761661085013,2.40129642,4164.5,4162.1,0.12]
[1761661085014,0.12,4163.1,4162.1,0.12]
[1761661085308,2.40226255,4162.8,4162.4,0.12]
[1761661085471,2.40211386,4163.0,4162.4,0.12]
[1761661085472,0.4568,4163.0,4162.4,0.12]
[1761661085674,2.4022135,4162.9,4162.4,0.12]
[1761661085875,2.40221617,4162.9,4162.4,0.12]
[1761661086075,2.40221617,4162.9,4162.3,1.5552]
[1761661086298,0.4568,4163.4,4162.2,1.5552]
[1761661086505,2.40244211,4162.5,4161.9,0.002]
[1761661086908,2.40255255,4162.3,4161.9,0.002]
[1761661087120,2.40247905,4162.4,4161.9,0.002]
[1761661087480,2.40252129,4162.3,4161.9,0.002]
[1761661087856,2.4024609,4162.4,4161.9,0.002]
[1761661088308,0.4383,4162.7,4162.0,3.58654835]
[1761661088690,2.40241322,4162.5,4162.0,3.58654835]
[1761661089020,0.4383,4162.7,4162.0,3.58654835]
[1761661089021,2.40235144,4162.6,4162.0,3.58654835]
[1761661089309,0.4383,4163.1,4162.1,0.1674]
[1761661089477,2.40212598,4163.0,4162.1,0.1674]
[1761661089679,0.4383,4163.1,4162.1,0.1674]
[1761661089901,2.40211623,4163.0,4162.3,2.40247485]
[1761661090108,2.40201929,4163.2,4162.5,2.40238486]
[1761661090275,2.40199786,4163.3,4162.5,2.40235726]
[1761661090471,2.40199786,4163.3,4162.6,3.58654835]
[1761661090770,0.4383,4163.6,4162.6,3.58654835]
[1761661090771,2.4021108,4163.1,4162.6,3.58654835]
[1761661090977,0.4383,4163.0,4162.6,3.58654835]
[1761661091205,2.40228697,4162.7,4162.6,3.58654835]
[1761661091406,2.40243571,4162.5,4162.0,3.58654835]
[1761661091637,0.4383,4162.6,4162.0,3.58654835]
[1761661091776,0.4383,4163.4,4162.1,0.1674]
[1761661092111,0.4383,4163.4,4162.1,2.56997823]
[1761661092112,2.40223239,4162.8,4162.1,2.56997823]
[1761661092314,2.40229053,4162.7,4162.1,0.1674]
[1761661092605,0.4383,4163.4,4162.0,3.58654835]
[1761661092606,2.40244507,4162.5,4162.0,3.58654835]
[1761661093019,0.405504,4163.2,4162.0,3.58654835]
[1761661093323,2.40241477,4162.5,4162.1,3.58654835]
[1761661094193,0.4383,4162.4,4161.9,0.002]
[1761661094390,2.40268511,4162.1,4161.9,0.002]
[1761661094590,2.40261605,4162.2,4161.9,0.002]
[1761661094792,0.4383,4162.4,4161.9,0.002]
[1761661094793,2.4026471,4162.1,4161.9,0.002]
[1761661097040,2.40269101,4162.0,4161.9,0.002]
[1761661097537,2.84099101,4162.0,4161.9,0.002]
[1761661097945,0.12,4162.3,4161.9,0.002]
[1761661098113,2.40287132,4163.5,4162.2,0.1674]
[1761661098310,0.12,4163.3,4162.6,0.12]
[1761661098539,2.40198377,4163.3,4162.4,0.0240246]
[1761661098858,0.121,4163.5,4162.8,0.12]
[1761661099176,0.121,4163.5,4162.5,4.04304835]
[1761661099177,0.001,4163.5,4163.2,0.12]
[1761661100151,2.40195704,4163.3,4162.6,3.58654835]
[1761661100645,2.40189706,4163.4,4162.6,4.18545412]
[1761661100846,2.40189706,4163.4,4162.7,2.40228578]
[1761661101027,2.40196595,4163.3,4162.6,6.58778287]
[1761661101350,0.001,4163.5,4162.8,2.35414372]
[1761661101511,2.40285687,4163.5,4162.8,2.35414372]
[1761661101718,0.001,4163.5,4162.6,3.58654835]
[1761661101966,0.4383,4163.4,4162.6,3.58654835]
[1761661102128,0.001,4163.5,4162.6,3.94520319]
[1761661102445,0.4393,4163.5,4162.6,3.58654835]
[1761661102827,2.40212076,4163.0,4162.6,3.58654835]
[1761661103346,0.4393,4163.5,4162.6,3.58654835]
[1761661103747,2.84117711,4163.5,4162.6,3.58654835]
[1761661104045,2.40223829,4162.8,4162.6,3.58654835]
[1761661104246,2.40217156,4162.9,4162.6,3.58654835]
[1761661104422,0.4383,4163.4,4162.7,3.58654835]
[1761661104750,2.40214066,4163.0,4162.7,3.58654835]
[1761661104915,2.40221769,4162.9,4162.7,3.58654835]
[1761661105518,2.40222926,4162.8,4162.7,3.58654835]
[1761661106019,2.40158952,4162.6,4162.4,1.5552]
[1761661106220,0.001,4163.5,4162.4,1.5552]
[1761661106221,2.40282925,4163.5,4162.4,1.5552]
[1761661106440,2.40221807,4162.9,4162.4,1.5552]
[1761661106618,2.84112925,4163.5,4162.4,1.5552]
[1761661106619,0.001,4163.5,4162.5,0.4565]
[1761661106820,2.40209493,4163.1,4162.5,0.4565]
[1761661107224,0.001,4163.5,4162.5,0.4565]
[1761661107424,2.4019858,4163.3,4162.5,2.40235498]
[1761661107751,2.40284446,4163.5,4162.6,2.40232898]
[1761661107959,2.40283367,4163.5,4162.8,2.40222926]
[1761661108122,0.001,4163.5,4162.9,2.40216253]
[1761661108321,0.001,4163.5,4163.4,0.168]
[1761661108522,0.001,4163.5,4163.4,5.30974835]
[1761661108748,0.001,4163.5,4163.4,6.0809134]
[1761661109067,0.001,4163.5,4163.4,8.93929647]
[1761661110261,0.001,4163.5,4163.4,9.46480047]
[1761661110424,0.001,4163.5,4163.4,16.1922091]
[1761661110625,0.001,4163.5,4163.4,17.47176123]
[1761661111169,0.001,4163.8,4163.7,2.80721401]
[1761661111376,0.001,4163.8,4163.7,9.14111885]
[1761661111661,0.001,4163.8,4163.7,8.84287099]
[1761661112258,0.001,4163.8,4163.7,22.6052097]
[1761661113637,2.40013925,4166.5,4163.8,1.960704]
[1761661113843,2.40003642,4166.7,4165.6,2.67151455]
[1761661114159,2.40004292,4166.6,4165.6,4.22671455]
[1761661114376,2.40015843,4166.4,4165.6,2.2826]
[1761661114686,2.40015843,4166.4,4165.6,4.68321455]
[1761661114901,2.40015843,4166.4,4165.6,4.98613034]
[1761661115047,2.40021834,4166.3,4165.6,2.58551579]
[1761661115353,0.4563,4166.7,4165.6,4.07581455]
[1761661115558,2.40014096,4166.5,4165.6,4.54511455]
[1761661115757,2.40017638,4166.4,4165.6,4.54511455]
[1761661115961,0.6856,4167.1,4165.6,4.42511455]
[1761661116302,0.01230538,4168.3,4165.9,2.40042245]
[1761661116591,0.01230538,4168.3,4166.9,1.5552]
[1761661116746,0.01230538,4168.3,4166.8,13.76233871]
[1761661116942,0.01230538,4168.3,4166.0,1.18227088]
[1761661116943,2.39930745,4167.9,4166.9,0.1488]
[1761661117144,0.4563,4168.2,4166.9,0.1488]
[1761661117347,2.39956426,4167.5,4166.9,0.1488]
[1761661117582,2.39991733,4166.9,4166.1,0.1488]
[1761661117785,0.2277,4167.0,4166.1,0.1488]
[1761661117957,0.2277,4167.5,4166.1,0.91257305]
[1761661118159,2.39968824,4167.3,4166.1,0.6181]
[1761661118476,0.2277,4167.5,4165.5,0.1488]
[1761661118477,0.4563,4167.4,4165.5,0.1488]
[1761661118648,0.4563,4167.4,4165.6,2.40056567]
[1761661118649,2.40014356,4166.5,4165.6,2.40056567]
[1761661118850,0.4563,4167.4,4165.6,0.4693]
[1761661119163,2.40009125,4166.6,4165.6,0.68663]
[1761661119362,0.4563,4167.3,4165.6,0.4693]
[1761661119681,0.59491435,4168.7,4168.2,0.1509]
[1761661120048,0.2277,4169.6,4168.2,0.1509]
[1761661120251,0.4563,4169.4,4168.2,0.1509]
[1761661120877,0.4563,4169.4,4168.4,2.39897007]
[1761661121196,0.4563,4169.4,4167.6,2.39942324]
[1761661121197,0.684,4168.9,4167.4,1.5552]
[1761661121376,0.684,4168.9,4167.5,1.75838015]
[1761661121696,0.2277,4168.8,4167.8,2.39933899]
[1761661121989,0.684,4168.8,4168.0,2.39920533]
[1761661122283,0.2277,4168.8,4167.7,1.5552]
[1761661122582,0.00317639,4169.0,4168.6,2.39884049]
[1761661122754,0.00317639,4169.0,4167.9,1.5552]
[1761661122955,0.00317639,4169.0,4168.8,2.3987637]
[1761661123150,0.00317639,4169.0,4168.0,0.35797]
[1761661123352,0.00317639,4169.0,4168.9,2.39871428]
[1761661124093,0.00317639,4169.0,4168.8,2.39876777]
[1761661124254,0.00317639,4169.0,4168.9,2.39871428]
[1761661125181,0.00317639,4169.0,4168.9,4.42321428]
[1761661125515,0.00317639,4169.0,4168.9,3.95391428]
[1761661126065,0.00317639,4169.0,4168.4,1.5552]
[1761661126364,0.00317639,4169.0,4168.9,2.51791428]
[1761661127285,0.00317639,4169.0,4168.9,0.1192]
[1761661127496,0.00317639,4169.0,4168.9,2.51791428]
[1761661128273,0.00317639,4169.0,4168.9,0.1192]
[1761661128986,0.00317639,4169.0,4168.9,2.51791428]
[1761661129206,0.00317639,4169.0,4168.9,0.1192]
[1761661129976,0.45947639,4169.0,4168.9,0.1192]
[1761661130177,0.00317639,4169.0,4168.9,0.1192]
[1761661130505,0.00317639,4169.0,4168.1,0.1509]
[1761661130802,0.4563,4169.3,4168.2,0.32613]
[1761661131001,0.001,4169.0,4168.6,2.39887936]
[1761661131299,0.001,4169.0,4168.5,2.39894446]
[1761661131480,0.2277,4168.9,4168.5,2.39894446]
[1761661131904,0.001,4169.0,4168.4,3.58654835]
[1761661132065,0.001,4169.0,4168.9,2.39871428]
[1761661132367,0.2277,4168.9,4168.6,2.39884261]
[1761661132568,0.2277,4168.9,4168.4,3.58654835]
[1761661132774,0.4563,4168.8,4168.4,3.58654835]
[1761661133197,0.4563,4168.8,4168.2,2.3991087]
[1761661133498,0.001,4169.0,4168.3,2.39905956]
[1761661133710,0.001,4169.0,4168.6,2.39883335]
[1761661134395,0.684,4168.9,4168.3,1.5552]
[1761661134966,3.08275983,4168.9,4168.1,2.39917114]
[1761661135163,0.684,4168.9,4168.2,2.39906998]
[1761661135403,0.684,4168.9,4168.3,1.5552]
[1761661135586,0.2277,4168.9,4168.2,0.395427]
[1761661135769,2.39877376,4168.8,4167.9,1.5552]
[1761661136100,3.08275556,4168.9,4168.2,2.39911682]
[1761661136563,3.08275556,4168.9,4167.9,3.9544867]
[1761661136564,2.39878611,4168.8,4167.9,3.9544867]
[1761661136777,0.001,4169.0,4168.1,2.39912057]
[1761661136980,0.001,4169.0,4168.0,0.75410351]
[1761661136981,0.2277,4168.9,4168.0,0.75410351]
[1761661137283,0.2277,4168.9,4168.3,2.3990339]
[1761661137690,0.2277,4168.9,4168.4,2.39899934]
[1761661138092,3.08275452,4168.9,4168.0,0.75410351]
[1761661138305,2.39877371,4168.8,4168.1,2.39912213]
[1761661138517,2.39881167,4168.8,4168.1,2.39916654]
[1761661138812,2.85511167,4168.8,4168.1,2.39916654]
[1761661139215,2.39883337,4168.7,4168.0,2.39921736]
[1761661139384,2.85513337,4168.7,4168.0,2.39921736]
[1761661139583,0.4563,4168.7,4168.1,2.39916704]
[1761661140116,2.39881996,4168.8,4168.1,3.03452473]
[1761661140292,0.2277,4168.9,4168.6,0.1192]
[1761661140617,2.39882937,4168.7,4168.6,0.1192]
[1761661141107,0.4563,4168.7,4168.6,0.1192]
[1761661141417,0.001,4169.0,4168.6,0.07122284]
[1761661141616,0.001,4169.0,4168.9,2.39871428]
[1761661141918,0.001,4169.0,4168.9,6.0147514]
[1761661142090,0.001,4169.0,4168.9,3.95391428]
[1761661142685,0.001,4169.0,4168.9,1.5552]
[1761661143085,0.001,4169.0,4168.2,1.5552]
[1761661143519,0.001,4169.0,4168.8,2.39876654]
[1761661143716,0.001,4169.0,4168.3,1.5552]
[1761661144021,0.001,4169.0,4168.5,3.9541415]
[1761661144409,0.001,4169.0,4167.8,14.28119637]
[1761661144410,0.684,4168.9,4167.8,14.28119637]
[1761661144624,2.39877422,4168.8,4168.1,2.39914142]
[1761661144924,2.3989636,4168.5,4167.8,2.39933661]
[1761661145226,0.2277,4168.9,4167.9,1.79513366]
[1761661145521,0.2277,4168.9,4168.1,2.39913473]
[1761661145695,0.2277,4168.9,4168.2,2.39906823]
[1761661145896,0.2277,4168.9,4168.3,2.39905231]
[1761661146103,0.2277,4168.9,4168.3,0.47982233]
[1761661146299,0.2277,4168.9,4168.3,2.87886442]
[1761661146704,2.62641885,4168.9,4168.3,0.47982233]
[1761661146914,0.4581,4168.8,4167.9,1.79513366]
[1761661147101,0.4581,4168.8,4167.9,0.23993366]
[1761661147102,2.39898596,4168.5,4167.9,0.23993366]
[1761661147404,0.4581,4168.8,4167.9,0.23993366]
[1761661147593,2.39900229,4168.4,4167.7,2.39940296]
[1761661148077,2.39900733,4168.4,4167.7,2.39936556]
[1761661148205,0.4581,4168.7,4167.6,1.5552]
[1761661148410,0.4581,4168.7,4167.8,2.39934737]
[1761661148633,2.85693121,4168.7,4168.0,2.39917843]
[1761661148832,2.85693121,4168.7,4168.0,4.20663688]
[1761661149037,2.39890315,4168.6,4168.0,1.80745845]
[1761661149346,2.398954,4168.5,4168.0,1.80745845]
[1761661149562,2.398954,4168.5,4167.5,1.5552]
[1761661149563,0.4597,4168.6,4167.2,14.42999637]
[1761661149766,2.39890196,4168.6,4167.9,2.39924928]
[1761661150251,0.4597,4168.8,4168.1,2.39912851]
[1761661150568,0.4597,4168.8,4168.3,2.39901825]
[1761661151055,0.4597,4168.8,4168.2,2.39911402]
[1761661151251,2.39878712,4168.8,4168.1,2.55006242]
[1761661151414,2.62642321,4168.9,4168.6,0.1192]
[1761661151619,0.2277,4168.9,4168.6,0.1192]
[1761661151834,0.001,4169.0,4168.6,0.1192]
[1761661154535,0.001,4169.0,4168.9,0.1192]
[1761661154735,0.2289,4168.9,4168.2,2.39907465]
[1761661154985,2.62762061,4168.9,4168.7,0.1192]
[1761661155138,0.2281,4168.9,4168.7,0.1192]
[1761661155474,0.4597,4168.8,4168.7,0.1192]
[1761661155632,2.85847182,4168.8,4168.7,0.1192]
[1761661155836,0.4597,4168.8,4167.9,3.95448505]
[1761661156155,2.85852937,4168.7,4168.4,0.1192]
[1761661156563,2.39888963,4168.6,4168.4,0.1192]
[1761661156875,2.39894446,4168.5,4168.4,0.1192]
[1761661157369,2.39894446,4168.5,4167.9,1.5552]
[1761661157572,0.4597,4168.5,4168.2,0.1192]
[1761661158973,2.39878606,4168.8,4168.2,0.1192]
[1761661159147,3.08653092,4168.9,4168.4,0.1192]
[1761661159356,0.2281,4168.9,4168.4,0.1192]
[1761661159562,3.08651546,4168.9,4168.4,0.1192]
[1761661159761,2.3987755,4168.8,4168.4,0.1192]
[1761661159943,0.4597,4168.8,4168.4,0.1192]
[1761661160479,0.2281,4168.9,4168.4,0.1192]
[1761661160677,2.62681794,4168.9,4168.4,0.1192]
[1761661161064,3.08651794,4168.9,4168.4,0.1192]
[1761661161395,2.39877864,4168.8,4168.4,0.07122227]
[1761661161876,2.39883779,4168.7,4168.4,0.07122227]
[1761661162053,2.39889802,4168.6,4168.4,0.07122227]
[1761661162390,2.85859802,4168.6,4168.4,0.07122227]
[1761661162585,2.85864446,4168.5,4168.4,0.07122227]
[1761661163253,0.4597,4168.5,4168.4,0.07122227]
[1761661163449,2.39890229,4168.6,4168.4,0.07122227]
[1761661163862,0.4597,4168.6,4168.4,0.07122227]
[1761661164060,0.2281,4168.9,4168.4,0.07122227]
[1761661164279,0.001,4169.0,4168.5,0.1192]
[1761661164479,2.39967813,4169.0,4168.5,0.1192]
[1761661164799,0.001,4169.0,4168.8,0.1192]
[1761661165478,0.2289,4168.9,4168.8,0.1192]
[1761661165787,0.001,4169.0,4168.8,0.1192]
[1761661166175,0.001,4169.0,4168.9,2.39871428]
[1761661166684,0.001,4169.0,4168.9,19.24049012]
[1761661166911,0.001,4169.0,4168.9,19.21650298]
[1761661167059,0.001,4169.0,4168.9,2.09139233]
[1761661167256,0.001,4169.0,4168.9,3.95391428]
[1761661167667,0.001,4169.0,4168.9,4.39911428]
[1761661167864,0.001,4169.0,4168.9,2.0004]
[1761661168108,0.001,4169.0,4168.9,1.5552]
[1761661168275,0.001,4169.0,4168.8,0.1192]
[1761661168657,0.4607,4169.0,4168.8,0.1192]
[1761661168857,0.2289,4168.9,4168.8,0.1192]
[1761661169258,0.6886,4168.9,4168.8,0.1192]
[1761661169461,0.001,4169.0,4168.8,0.1192]
[1761661170072,0.6886,4168.9,4168.8,0.1192]
[1761661170643,0.2289,4168.9,4168.3,0.002]
[1761661170767,0.2289,4168.9,4168.4,2.39900201]
[1761661171073,0.2289,4168.9,4168.3,0.002]
[1761661171275,0.001,4169.0,4168.3,2.40101252]
[1761661171490,0.001,4169.0,4168.4,2.39900201]
[1761661171689,0.001,4169.0,4168.6,2.39883275]
[1761661171893,0.001,4169.0,4168.4,0.4452]
[1761661172069,0.001,4169.0,4168.3,17.34069185]
[1761661172269,0.001,4169.0,4168.7,2.39882015]
[1761661172488,0.001,4169.0,4168.8,2.39876839]
[1761661172708,0.001,4169.0,4168.7,2.39881527]
[1761661173070,0.001,4169.0,4168.8,2.39874478]
[1761661173267,0.001,4169.0,4168.8,2.39876935]
[1761661173595,0.001,4169.0,4168.9,2.39871428]
[1761661173996,0.001,4169.0,4168.4,1.5552]
[1761661174197,0.001,4169.0,4168.8,2.39872316]
[1761661174604,0.001,4169.0,4168.7,2.3988241]
[1761661174908,0.001,4169.0,4168.8,3.58654835]
[1761661175801,0.001,4169.0,4168.8,5.98529776]
[1761661176003,0.001,4169.0,4168.8,6.73938418]
[1761661176205,0.001,4169.0,4168.9,2.42270142]
[1761661176406,0.001,4169.0,4168.8,4.34063477]
[1761661176591,0.2286,4168.9,4168.8,3.58654835]
[1761661176997,0.001,4169.0,4168.9,2.39871428]
[1761661177194,0.001,4169.0,4168.9,3.95391428]
[1761661177410,0.001,4169.0,4168.9,5.29870015]
[1761661177606,0.001,4169.0,4168.9,7.49657264]
[1761661178185,0.001,4169.0,4168.9,7.06137264]
[1761661178799,0.001,4169.0,4168.9,0.90958587]
[1761661179096,0.001,4169.0,4168.9,3.30830015]
[1761661179428,0.001,4169.0,4168.9,3.74350015]
[1761661179619,0.0002,4169.0,4168.9,3.30830015]
[1761661180592,0.0002,4169.0,4168.9,3.42750015]
[1761661180794,0.0002,4169.0,4168.9,1.61141857]
[1761661180994,0.0002,4169.0,4168.9,1.02878587]
[1761661181228,0.0002,4169.0,4168.9,3.42750015]
[1761661181425,0.0002,4169.0,4168.9,0.98081216]
[1761661181810,0.4349,4169.0,4168.9,0.98081216]
[1761661181996,0.0002,4169.0,4168.9,0.98081216]
[1761661184626,0.4349,4169.0,4168.9,0.98081216]
[1761661184830,0.0002,4169.0,4168.9,0.98081216]
[1761661186730,0.0002,4169.0,4168.9,3.37952644]
[1761661187253,0.0002,4169.0,4168.9,0.98081216]
[1761661188240,0.4349,4169.0,4168.9,0.98081216]
[1761661188614,0.0002,4169.0,4168.9,0.98081216]
[1761661192627,0.0002,4169.0,4168.9,1.31876662]
[1761661192940,0.0002,4169.0,4168.9,3.7174809]
[1761661194025,0.0002,4169.0,4168.9,5.2726809]
[1761661194259,0.0002,4169.0,4168.9,5.7078809]
[1761661195567,0.0002,4169.0,4168.9,5.2726809]
[1761661196141,0.0002,4169.0,4168.9,2.87396662]
[1761661196349,0.0002,4169.0,4168.9,4.93472644]
[1761661196743,0.0002,4169.0,4168.9,3.37952644]
[1761661196970,0.4349,4169.0,4168.9,3.37952644]
[1761661197143,0.0002,4169.0,4168.9,3.37952644]
[1761661197733,0.0002,4169.0,4168.9,0.98081216]
[1761661198265,0.0002,4169.0,4168.9,3.37952644]
[1761661198466,0.0002,4169.0,4168.9,0.98081216]
[1761661199836,0.4349,4169.0,4168.9,0.98081216]
[1761661200471,0.0002,4169.0,4168.9,0.98081216]
[1761661201194,0.0002,4169.0,4168.9,0.86161216]
[1761661201390,0.0002,4169.0,4168.9,3.21235273]
[1761661201546,0.4349,4169.0,4168.9,0.81363845]
[1761661201750,0.4349,4169.0,4168.9,5.672521]
[1761661203359,0.0002,4169.0,4168.9,5.672521]
[1761661203877,0.0002,4169.0,4168.9,0.81363845]
[1761661204073,0.4341,4169.3,4168.9,0.81363845]
[1761661204289,0.2286,4169.9,4168.9,0.81363845]
[1761661204290,0.2286,4169.9,4169.1,5.71836594]
[1761661204646,0.2286,4169.9,4169.3,2.39843029]
[1761661205081,0.2286,4169.9,4169.4,2.39840847]
[1761661205460,0.2286,4169.9,4169.2,2.39854168]
[1761661205648,0.2286,4169.9,4169.5,2.39836069]
[1761661205849,0.2289,4170.5,4169.3,2.39848415]
[1761661206073,0.4453,4170.3,4169.4,2.42241089]
[1761661206386,0.4453,4170.3,4169.6,2.39829197]
[1761661206692,2.39795763,4170.3,4169.5,2.39831431]
[1761661206989,0.001,4169.9,4169.7,2.39820252]
[1761661207146,0.001,4169.9,4169.5,2.3983691]
[1761661207347,0.001,4169.9,4169.6,2.39831158]
[1761661208318,0.001,4169.9,4169.5,1.09750557]
[1761661208590,0.001,4169.9,4169.8,5.71836594]
[1761661209442,0.001,4169.9,4169.8,8.11656249]
[1761661209853,0.001,4169.9,4169.8,5.71836594]
[1761661210084,0.001,4169.9,4169.8,8.79814964]
[1761661210290,0.001,4169.9,4169.8,10.82804964]
[1761661210690,0.2254,4171.5,4169.9,2.0299]
[1761661210902,0.2254,4171.5,4169.8,7.95515309]
[1761661210903,0.2254,4171.5,4170.0,1.73730637]
[1761661211085,0.2254,4171.5,4171.4,5.83756594]
[1761661211394,0.2254,4171.5,4171.2,5.71836594]
[1761661211580,0.71932527,4173.0,4171.5,2.39721922]
[1761661211754,0.2254,4172.9,4171.9,13.69508413]
[1761661211957,2.39646687,4172.9,4171.9,13.69508413]
[1761661212175,0.71932527,4173.0,4172.0,3.22278328]
[1761661212373,0.71932527,4173.0,4172.0,2.92470841]
[1761661212605,0.0025,4174.1,4172.2,1.5552]
[1761661212805,0.4649,4173.9,4172.2,1.5552]
[1761661213010,0.0025,4174.1,4172.2,1.5552]
[1761661213214,0.0025,4174.1,4172.3,0.78234084]
[1761661213378,0.4649,4174.0,4172.3,0.30764084]
[1761661213582,0.2254,4173.9,4172.3,0.30764084]
[1761661213782,2.39600972,4173.7,4172.3,0.78234084]
[1761661214005,0.4649,4174.0,4172.3,0.78234084]
[1761661214006,0.0025,4174.1,4172.3,0.30764084]
[1761661214307,2.39623681,4173.3,4172.4,0.82027487]
[1761661214475,2.39623681,4173.3,4172.4,0.4747]
[1761661214783,2.39612577,4173.5,4172.4,0.4747]
[1761661214983,2.39607044,4173.5,4172.3,0.30764084]
[1761661215197,0.4649,4173.5,4172.3,0.30764084]
[1761661215405,0.2254,4173.6,4172.3,0.30764084]
[1761661215604,0.2254,4173.6,4172.4,0.4747]
[1761661215830,2.39621341,4173.3,4172.4,0.4747]
[1761661216111,2.3964625,4172.9,4172.1,0.1517]
[1761661216321,0.4649,4173.5,4172.1,0.1517]
[1761661216322,2.39612785,4173.4,4172.1,0.1517]
[1761661216476,2.39633343,4173.1,4172.1,0.1517]
[1761661216892,0.4649,4173.3,4172.1,0.49727487]
[1761661217086,2.39625281,4173.2,4172.1,2.40412328]
[1761661217380,2.39634716,4173.1,4172.1,1.58384841]
[1761661217577,2.39636607,4173.0,4172.1,0.1517]
[1761661217778,2.39643013,4172.9,4172.1,0.1517]
[1761661218321,2.39633589,4173.1,4172.1,0.1517]
[1761661218516,2.3963892,4173.0,4172.1,0.1517]
[1761661218686,0.4649,4173.3,4171.8,0.34557487]
[1761661218891,0.2254,4173.6,4171.0,0.1517]
[1761661218892,0.4649,4173.2,4171.0,0.1517]
[1761661219087,2.39709905,4171.8,4170.6,0.1517]
[1761661219286,2.39710025,4171.8,4170.6,0.1517]
[1761661219489,2.39709765,4171.8,4170.6,0.6264]
[1761661219702,2.39695103,4172.0,4170.7,0.02397679]
[1761661220030,0.2254,4172.2,4171.2,0.02265874]
[1761661220213,0.2254,4172.2,4171.3,0.02397334]
[1761661220394,0.2254,4172.2,4171.2,0.02265874]
[1761661220590,0.2254,4172.2,4171.2,0.32702444]
[1761661220789,2.39698269,4172.0,4171.2,0.02265874]
[1761661221030,2.86178671,4172.1,4171.2,0.02265874]
[1761661221327,2.86183192,4172.0,4171.9,0.07126079]
[1761661221632,0.4649,4172.0,4171.2,0.02265874]
[1761661221814,2.397126,4171.7,4171.2,0.02265874]
[1761661221996,0.4649,4171.9,4171.2,0.02265874]
[1761661222325,2.39733416,4171.3,4171.2,0.02265874]
[1761661222735,2.86223416,4171.3,4171.2,0.02265874]
[1761661223629,0.4649,4171.3,4171.2,0.02265874]
[1761661223817,2.86223416,4171.3,4171.2,0.02265874]
[1761661224332,2.62224958,4172.2,4171.2,0.02265874]
[1761661224333,0.4649,4172.0,4171.2,0.02265874]
[1761661225392,2.39700203,4171.9,4171.2,0.02265874]
[1761661225593,0.4649,4172.0,4171.2,0.02265874]
[1761661225902,2.86192939,4171.9,4171.2,0.02265874]
[1761661226104,2.39710429,4171.7,4171.2,0.02265874]
[1761661226418,2.39692107,4172.1,4171.2,0.02265874]
[1761661226620,0.2254,4172.2,4171.3,0.02397334]
[1761661226931,0.4649,4172.8,4171.2,0.49735874]
[1761661227228,2.8613795,4172.8,4171.3,0.34557487]
[1761661227433,2.39652982,4172.7,4171.3,0.34557487]
[1761661227731,2.86142982,4172.7,4171.3,0.34557487]
[1761661227935,2.3965307,4172.7,4171.3,0.34557487]
[1761661228099,2.86149001,4172.6,4171.3,0.34557487]
[1761661228433,2.86068736,4172.6,4171.3,0.34557487]
[1761661228734,0.4641,4172.6,4171.3,0.82027487]
[1761661228901,0.2254,4173.0,4171.4,0.02397276]
[1761661229099,2.39653259,4172.7,4171.5,0.4747]
[1761661229432,2.6217601,4173.0,4171.4,0.34557487]
[1761661229433,0.2254,4173.0,4171.4,0.82027487]
[1761661229603,0.2254,4173.0,4171.5,0.34557487]
[1761661229997,2.62180558,4173.0,4171.6,0.4747]
[1761661230214,0.2254,4173.6,4171.7,0.34811911]
[1761661230413,0.4747,4173.9,4171.8,1.5552]
[1761661230610,0.6903,4173.8,4171.9,0.4747]
[1761661230798,0.4649,4173.7,4172.0,1.5552]
[1761661230998,2.3960801,4173.5,4172.1,0.47724436]
[1761661231202,0.4649,4173.7,4172.0,0.34557487]
[1761661231532,0.2254,4173.8,4172.9,0.1192]
[1761661231533,2.39635753,4173.0,4172.9,0.1192]
[1761661231735,2.86125753,4173.0,4172.9,0.1192]
[1761661231909,2.39663743,4172.6,4171.2,0.02265874]
[1761661232110,2.39663743,4172.6,4171.3,0.4747]
[1761661232415,2.39663743,4172.6,4172.5,0.1192]
[1761661232416,2.86153743,4172.6,4172.5,0.1192]
[1761661232614,2.39690067,4172.1,4171.2,0.02265874]
[1761661232956,0.405504,4172.8,4171.2,0.02265874]
[1761661233262,0.2254,4172.9,4171.2,0.02265874]
[1761661233263,2.39721393,4171.6,4171.2,0.02265874]
[1761661233401,0.2254,4171.3,4171.2,0.02265874]
[1761661233597,2.39716857,4171.6,4171.2,0.02265874]
[1761661233598,0.4649,4171.6,4171.2,0.02265874]
[1761661233833,2.39733416,4171.3,4171.2,0.02265874]
[1761661234032,2.39722015,4171.5,4171.2,0.02265874]
[1761661234252,1.960704,4172.7,4171.2,0.02265874]
[1761661234253,0.2254,4171.8,4171.2,0.02265874]
[1761661234416,0.2254,4171.8,4171.2,3.60920709]
[1761661234627,0.4462,4171.7,4171.2,0.02265874]
[1761661234828,2.3972645,4171.5,4171.2,0.02265874]